fUSD/lending_fUSD_20250623
["ID","MTS","AMOUNT","RATE_DAILY","PERIOD"]
[367200269,1750698681105,-500.0,0.00023959,2]
[367200270,1750698681115,-150.0,0.00023959,2]
[367200271,1750698681125,-150.55245506,0.00023959,2]
[367200272,1750698681134,-215.47703538,0.00023959,2]
[367200273,1750698681144,-153.07957135,0.00023959,2]
[367200274,1750698681154,-500.0,0.00023959,2]
[367200275,1750698681164,-500.0,0.00023959,2]
[367200276,1750698681173,-500.0,0.00023959,2]
[367200277,1750698681182,-199.04424044,0.00023959,2]
[367200278,1750698681192,-500.68412876,0.00023959,2]
[367200279,1750698681201,-549.0,0.00023959,2]
[367200280,1750698681210,-239.23764832,0.00023959,2]
[367200281,1750698681220,-500.0,0.00023959,2]
[367200282,1750698681229,-150.0,0.00023959,2]
[367200283,1750698681238,-500.0,0.00023959,2]
[367200284,1750698681248,-508.46205092,0.00023959,2]
[367200285,1750698681259,-500.0,0.00023959,2]
[367200286,1750698681269,-500.0,0.00023959,2]
[367200287,1750698681281,-500.0,0.00023959,2]
[367200288,1750698681290,-150.0,0.00023959,2]
[367200289,1750698681300,-500.0,0.00023959,2]
[367200290,1750698681310,-150.0,0.00023959,2]
[367200291,1750698681320,-500.0,0.00023959,2]
[367200292,1750698681330,-500.0,0.00023959,2]
[367200293,1750698681340,-500.0,0.00023959,2]
[367200294,1750698681350,-150.0,0.00023959,2]
[367200295,1750698681358,-500.0,0.00023959,2]
[367200296,1750698681367,-150.0,0.00023959,2]
[367200297,1750698681377,-500.0,0.00023959,2]
[367200298,1750698681386,-500.0,0.00023959,2]
[367200299,1750698681395,-150.0,0.00023959,2]
[367200300,1750698681405,-594.51788817,0.00023959,2]
[367200301,1750698681415,-500.0,0.00023959,2]
[367200302,1750698681423,-150.0,0.00023959,2]
[367200303,1750698681433,-176.77402393,0.00023959,2]
[367200304,1750698681442,-150.0,0.00023959,2]
[367200305,1750698681451,-150.0,0.00023959,2]
[367200306,1750698681461,-500.0,0.00023987,2]
[367200307,1750698681470,-500.0,0.00023987,2]
[367200308,1750698681479,-150.0,0.00023987,2]
[367200309,1750698681488,-500.0,0.00023987,2]
[367200310,1750698681498,-150.0,0.00023987,2]
[367200311,1750698681507,-174.47162094,0.00023987,2]
[367200312,1750698681517,-342.11707165,0.00023987,2]
[367200313,1750698681526,-500.0,0.00023987,2]
[367200314,1750698681535,-549.0,0.00023987,2]
[367200315,1750698681544,-500.0,0.00023987,2]
[367200316,1750698681554,-151.2407853,0.00023987,2]
[367200317,1750698681564,-500.0,0.00023987,2]
[367200318,1750698681574,-300.0,0.00023987,2]
[367200319,1750698681583,-500.0,0.00023987,2]
[367200320,1750698681595,-603.96467875,0.00023987,2]
[367200321,1750698681605,-150.0,0.00023987,2]
[367200322,1750698681615,-500.0,0.00023987,2]
[367200323,1750698681625,-153.71729806,0.00023987,2]
[367200324,1750698681634,-500.0,0.00023987,2]
[367200325,1750698681643,-500.0,0.00023987,2]
[367200326,1750698681652,-500.0,0.00023987,2]
[367200327,1750698681661,-212.7061915,0.00023987,2]
[367200328,1750698681672,-303.16874331,0.00023987,2]
[367200329,1750698681681,-151.72161984,0.00023987,2]
[367200330,1750698681691,-160.8940176,0.00023987,2]
[367200331,1750698681701,-500.0,0.00023987,2]
[367200332,1750698681711,-210.65516095,0.00023987,2]
[367200333,1750698681720,-500.0,0.00023987,2]
[367200334,1750698681730,-150.0,0.00023987,2]
[367200335,1750698681740,-150.0,0.00023987,2]
[367200336,1750698681749,-178.46260844,0.00023987,2]
[367200337,1750698681759,-608.03,0.00023992,2]
[367200338,1750698681769,-608.03,0.00023992,2]
[367200339,1750698681779,-608.03,0.00023992,2]
[367200340,1750698681788,-608.03,0.00023992,2]
[367200341,1750698681798,-608.22011825,0.00023992,2]
[367200342,1750698681808,-2000.0,0.00024,2]
[367200343,1750698681818,-155.12,0.00024,2]
[367200344,1750698681827,-211.12,0.00024,2]
[367200345,1750698681839,-3314.39782935,0.00024,2]
[367200346,1750698681848,-238.0,0.00024,2]
[367200347,1750698681858,-150.0,0.00024003,2]
[367200348,1750698681868,-206.27812824,0.00024014,2]
[367200349,1750698681878,-500.0,0.00024014,2]
[367200350,1750698681888,-152.53157968,0.00024014,2]
[367200351,1750698681897,-500.0,0.00024014,2]
[367200352,1750698681908,-195.69895129,0.00024014,2]
[367200353,1750698681917,-501.92414829,0.00024014,2]
[367200354,1750698681926,-549.0,0.00024014,2]
[367200355,1750698681936,-410.67802328,0.00024014,2]
[367200356,1750698681945,-500.0,0.00024014,2]
[367200357,1750698681954,-500.0,0.00024014,2]
[367200358,1750698681964,-166.95679221,0.00024014,2]
[367200359,1750698681974,-500.0,0.00024014,2]
[367200360,1750698681983,-302.36129977,0.00024014,2]
[367200361,1750698681992,-500.0,0.00024014,2]
[367200362,1750698682001,-509.04695676,0.00024014,2]
[367200363,1750698682011,-500.0,0.00024014,2]
[367200364,1750698682020,-357.26117849,0.00024014,2]
[367200365,1750698682029,-150.0,0.00024014,2]
[367200366,1750698682038,-155.2209032,0.00024014,2]
[367200367,1750698682047,-501.53938039,0.00024026,2]
[367200368,1750698682056,-158.19069472,0.0002404,2]
[367200369,1750698682065,-500.0,0.00024042,2]
[367200370,1750698682076,-500.0,0.00024042,2]
[367200371,1750698682092,-549.0,0.00024042,2]
[367200372,1750698682101,-500.0,0.00024042,2]
[367200373,1750698682111,-500.0,0.00024042,2]
[367200374,1750698682120,-500.0,0.00024042,2]
[367200375,1750698682130,-210.45882457,0.00024042,2]
[367200376,1750698682139,-174.04703362,0.00024042,2]
[367200377,1750698682148,-253.15924538,0.00024042,2]
[367200378,1750698682158,-834.59255148,0.00024051,2]
[367200379,1750698682167,-150.0,0.00024054,2]
[367200380,1750698682176,-1500.0,0.00024068,2]
[367200381,1750698682185,-1500.0,0.00024068,2]
[367200382,1750698682194,-1500.0,0.00024068,2]
[367200383,1750698682203,-1500.0,0.00024068,2]
[367200384,1750698682213,-500.0,0.00024069,2]
[367200385,1750698682221,-391.74077502,0.00024069,2]
[367200386,1750698682231,-549.0,0.00024069,2]
[367200387,1750698682240,-500.0,0.00024069,2]
[367200388,1750698682249,-500.0,0.00024069,2]
[367200389,1750698682258,-500.0,0.00024069,2]
[367200390,1750698682267,-150.0,0.00024077,2]
[367200391,1750698682277,-728.95,0.00024084,2]
[367200392,1750698682286,-490.0,0.00024084,2]
[367200393,1750698682295,-490.0,0.00024084,2]
[367200394,1750698682305,-1326.54,0.00024084,2]
[367200395,1750698682314,-558.39,0.00024084,2]
[367200396,1750698682323,-1102.83,0.00024084,2]
[367200397,1750698682332,-300.0,0.00024085,2]
[367200398,1750698682344,-490.0,0.00024088,2]
[367200399,1750698682353,-490.0,0.00024088,2]
[367200400,1750698682362,-490.0,0.00024088,2]
[367200401,1750698682370,-519.65,0.00024088,2]
[367200402,1750698682379,-168.0,0.00024088,2]
[367200403,1750698682389,-300.0,0.00024089,2]
[367200404,1750698682397,-490.0,0.00024089,2]
[367200405,1750698682407,-490.0,0.00024089,2]
[367200406,1750698682416,-490.0,0.00024089,2]
[367200407,1750698682425,-490.0,0.00024089,2]
[367200408,1750698682435,-490.0,0.00024089,2]
[367200409,1750698682443,-667.69,0.00024089,2]
[367200410,1750698682453,-646.96,0.00024089,2]
[367200411,1750698682462,-587.11,0.00024089,2]
[367200412,1750698682471,-563.63,0.00024089,2]
[367200413,1750698682480,-639.66,0.00024089,2]
[367200414,1750698682491,-727.63,0.00024089,2]
[367200415,1750698682500,-688.37,0.00024089,2]
[367200416,1750698682509,-679.62,0.00024089,2]
[367200417,1750698682518,-1392.01,0.00024089,2]
[367200418,1750698682527,-1071.03,0.00024089,2]
[367200419,1750698682537,-655.34,0.00024089,2]
[367200420,1750698682546,-490.0,0.00024089,2]
[367200421,1750698682556,-490.0,0.00024089,2]
[367200422,1750698682565,-406.82,0.00024089,2]
[367200423,1750698682574,-490.0,0.00024089,2]
[367200424,1750698682584,-490.0,0.00024089,2]
[367200425,1750698682597,-608.99,0.00024089,2]
[367200426,1750698682606,-490.0,0.00024089,2]
[367200427,1750698682616,-1379.66,0.00024089,2]
[367200428,1750698682626,-669.98,0.00024089,2]
[367200429,1750698682636,-611.24,0.00024089,2]
[367200430,1750698682645,-651.34,0.00024089,2]
[367200431,1750698682654,-1147.78,0.00024089,2]
[367200432,1750698682664,-490.0,0.00024089,2]
[367200433,1750698682673,-490.0,0.00024089,2]
[367200434,1750698682682,-848.13,0.00024089,2]
[367200435,1750698682692,-490.0,0.00024089,2]
[367200436,1750698682701,-490.11,0.00024089,2]
[367200437,1750698682710,-491.56,0.00024089,2]
[367200438,1750698682719,-599.57859806,0.00024089,2]
[367200439,1750698682728,-535.75,0.00024089,2]
[367200440,1750698682738,-710.24,0.00024089,2]
[367200441,1750698682748,-1005.59,0.00024089,2]
[367200442,1750698682757,-490.0,0.00024089,2]
[367200443,1750698682767,-1093.69,0.00024089,2]
[367200444,1750698682777,-490.0,0.00024089,2]
[367200445,1750698682787,-495.46,0.00024089,2]
[367200446,1750698682797,-1026.37,0.00024089,2]
[367200447,1750698682807,-1042.94,0.00024089,2]
[367200448,1750698682818,-490.0,0.00024089,2]
[367200449,1750698682827,-680.85,0.00024089,2]
[367200450,1750698682841,-500.0,0.00024089,2]
[367200451,1750698682851,-999.16,0.00024089,2]
[367200452,1750698682861,-667.22,0.00024089,2]
[367200453,1750698682875,-693.98,0.00024089,2]
[367200454,1750698682884,-1158.24,0.00024089,2]
[367200455,1750698682894,-490.0,0.00024089,2]
[367200456,1750698682903,-1114.67,0.00024089,2]
[367200457,1750698682912,-796.17,0.00024089,2]
[367200458,1750698682922,-490.0,0.00024089,2]
[367200459,1750698682931,-908.82,0.00024089,2]
[367200460,1750698682940,-588.97,0.00024089,2]
[367200461,1750698682950,-917.59,0.00024089,2]
[367200462,1750698682959,-821.03,0.00024089,2]
[367200463,1750698682969,-1290.1,0.00024089,2]
[367200464,1750698682977,-490.0,0.00024089,2]
[367200465,1750698683202,-490.0,0.00024089,2]
[367200466,1750698683213,-795.86,0.00024089,2]
[367200467,1750698683222,-577.68,0.00024089,2]
[367200468,1750698683231,-1286.37,0.00024089,2]
[367200469,1750698683240,-891.33,0.00024089,2]
[367200470,1750698683250,-519.20142542,0.00024089,2]
[367200471,1750698683259,-490.0,0.00024089,2]
[367200472,1750698683268,-547.12,0.00024089,2]
[367200473,1750698683277,-915.13,0.00024089,2]
[367200474,1750698683286,-607.15,0.00024089,2]
[367200475,1750698683295,-490.0,0.00024089,2]
[367200476,1750698683304,-490.0,0.00024089,2]
[367200477,1750698683313,-519.94,0.00024089,2]
[367200478,1750698683323,-827.87,0.00024089,2]
[367200479,1750698683332,-490.0,0.00024089,2]
[367200480,1750698683350,-490.0,0.00024089,2]
[367200481,1750698683359,-490.0,0.00024089,2]
[367200482,1750698683369,-528.13,0.00024089,2]
[367200483,1750698683378,-735.18,0.00024089,2]
[367200484,1750698683387,-202.02900418,0.00024089,2]
[367200485,1750698683396,-490.0,0.00024089,2]
[367200486,1750698683406,-503.9,0.00024089,2]
[367200487,1750698683416,-868.27,0.00024089,2]
[367200488,1750698683425,-577.29,0.00024089,2]
[367200489,1750698683435,-490.0,0.00024089,2]
[367200490,1750698683445,-490.0,0.00024089,2]
[367200491,1750698683454,-490.0,0.00024089,2]
[367200492,1750698683464,-532.41,0.00024089,2]
[367200493,1750698683473,-713.81,0.00024089,2]
[367200494,1750698683482,-490.0,0.00024089,2]
[367200495,1750698683491,-500.0,0.00024089,2]
[367200496,1750698683500,-639.62,0.00024089,2]
[367200497,1750698683509,-444.35675687,0.00024089,2]
[367200498,1750698683519,-490.0,0.00024089,2]
[367200499,1750698683528,-490.0,0.00024089,2]
[367200500,1750698683536,-503.62,0.00024089,2]
[367200501,1750698683545,-1449.54,0.00024089,2]
[367200502,1750698683555,-490.0,0.00024089,2]
[367200503,1750698683564,-2103.74,0.00024089,2]
[367200504,1750698683573,-1502.01,0.00024089,2]
[367200505,1750698683583,-490.0,0.00024089,2]
[367200506,1750698683599,-490.0,0.00024089,2]
[367200507,1750698683609,-490.0,0.00024089,2]
[367200508,1750698683618,-1281.35,0.00024089,2]
[367200509,1750698683628,-490.0,0.00024089,2]
[367200510,1750698683638,-490.0,0.00024089,2]
[367200511,1750698683647,-1013.96,0.00024089,2]
[367200512,1750698683656,-978.16,0.00024089,2]
[367200513,1750698683666,-706.03,0.00024089,2]
[367200514,1750698683676,-490.0,0.00024089,2]
[367200515,1750698683685,-490.0,0.00024089,2]
[367200516,1750698683694,-490.0,0.00024089,2]
[367200517,1750698683704,-490.0,0.00024089,2]
[367200518,1750698683713,-490.0,0.00024089,2]
[367200519,1750698683722,-851.97,0.00024089,2]
[367200520,1750698683732,-490.0,0.00024089,2]
[367200521,1750698683741,-181.27469993,0.00024089,2]
[367200522,1750698683750,-490.0,0.00024089,2]
[367200523,1750698683759,-326.11702884,0.00024089,2]
[367200524,1750698683768,-968.94,0.00024089,2]
[367200525,1750698683778,-490.0,0.00024089,2]
[367200526,1750698683787,-1305.56,0.00024089,2]
[367200527,1750698683796,-605.32,0.00024089,2]
[367200528,1750698683806,-1523.12,0.00024089,2]
[367200529,1750698683815,-496.3,0.00024089,2]
[367200530,1750698683824,-596.62,0.00024089,2]
[367200531,1750698683832,-490.0,0.00024089,2]
[367200532,1750698683845,-490.0,0.00024089,2]
[367200533,1750698683854,-490.0,0.00024089,2]
[367200534,1750698683863,-1231.23,0.00024089,2]
[367200535,1750698683873,-640.93,0.00024089,2]
[367200536,1750698683883,-177.61458703,0.00024089,2]
[367200537,1750698683892,-1091.48,0.00024089,2]
[367200538,1750698683901,-318.37449331,0.00024089,2]
[367200539,1750698683910,-1608.07,0.00024089,2]
[367200540,1750698683921,-736.66,0.00024089,2]
[367200541,1750698683930,-1000.0,0.00024089,2]
[367200542,1750698683939,-329.05918355,0.00024089,2]
[367200543,1750698683948,-490.0,0.00024089,2]
[367200544,1750698683957,-1296.4,0.00024089,2]
[367200545,1750698683967,-490.0,0.00024089,2]
[367200546,1750698683976,-687.53,0.00024089,2]
[367200547,1750698683985,-305.52308686,0.00024089,2]
[367200548,1750698683995,-577.42,0.00024089,2]
[367200549,1750698684005,-994.99,0.00024089,2]
[367200550,1750698684015,-1465.11,0.00024089,2]
[367200551,1750698684024,-490.0,0.00024089,2]
[367200552,1750698684034,-659.98,0.00024089,2]
[367200553,1750698684043,-1163.27,0.00024089,2]
[367200554,1750698684052,-490.0,0.00024089,2]
[367200555,1750698684062,-1296.64,0.00024089,2]
[367200556,1750698684073,-805.19,0.00024089,2]
[367200557,1750698684084,-490.0,0.00024089,2]
[367200558,1750698684097,-798.6,0.00024089,2]
[367200559,1750698684106,-961.74,0.00024089,2]
[367200560,1750698684117,-490.0,0.00024089,2]
[367200561,1750698684127,-490.0,0.00024089,2]
[367200562,1750698684136,-586.53,0.00024089,2]
[367200563,1750698684145,-711.71,0.00024089,2]
[367200564,1750698684155,-490.0,0.00024089,2]
[367200565,1750698684165,-490.0,0.00024089,2]
[367200566,1750698684175,-1316.01,0.00024089,2]
[367200567,1750698684184,-2071.77,0.00024089,2]
[367200568,1750698684194,-490.0,0.00024089,2]
[367200569,1750698684203,-707.92,0.00024089,2]
[367200570,1750698684213,-1435.25,0.00024089,2]
[367200571,1750698684222,-490.0,0.00024089,2]
[367200572,1750698684232,-988.12,0.00024089,2]
[367200573,1750698684242,-1316.04,0.00024089,2]
[367200574,1750698684251,-490.0,0.00024089,2]
[367200575,1750698684261,-490.0,0.00024089,2]
[367200576,1750698684270,-1649.14,0.00024089,2]
[367200577,1750698684279,-490.0,0.00024089,2]
[367200578,1750698684288,-490.0,0.00024089,2]
[367200579,1750698684298,-1451.84,0.00024089,2]
[367200580,1750698684308,-2574.3,0.00024089,2]
[367200581,1750698684317,-677.43,0.00024089,2]
[367200582,1750698684327,-1302.67,0.00024089,2]
[367200583,1750698684340,-761.66,0.00024089,2]
[367200584,1750698684349,-671.45,0.00024089,2]
[367200585,1750698684359,-1201.92,0.00024089,2]
[367200586,1750698684368,-490.0,0.00024089,2]
[367200587,1750698684377,-490.0,0.00024089,2]
[367200588,1750698684386,-490.0,0.00024089,2]
[367200589,1750698684395,-490.0,0.00024089,2]
[367200590,1750698684405,-1463.6,0.00024089,2]
[367200591,1750698684414,-1384.87,0.00024089,2]
[367200592,1750698684426,-1565.89,0.00024089,2]
[367200593,1750698684435,-740.56,0.00024089,2]
[367200594,1750698684444,-269.71591176,0.00024089,2]
[367200595,1750698684453,-581.5,0.00024089,2]
[367200596,1750698684463,-1274.36,0.00024089,2]
[367200597,1750698684472,-490.0,0.00024089,2]
[367200598,1750698684480,-1136.75,0.00024089,2]
[367200599,1750698684489,-3207.81,0.00024089,2]
[367200600,1750698684498,-490.0,0.00024089,2]
[367200601,1750698684507,-508.28,0.00024089,2]
[367200602,1750698684516,-490.0,0.00024089,2]
[367200603,1750698684526,-645.34,0.00024089,2]
[367200604,1750698684534,-1082.91,0.00024089,2]
[367200605,1750698684543,-570.24,0.00024089,2]
[367200606,1750698684553,-3216.41,0.00024089,2]
[367200607,1750698684562,-1198.83,0.00024089,2]
[367200608,1750698684571,-777.62,0.00024089,2]
[367200609,1750698684581,-3260.51,0.00024089,2]
[367200610,1750698684596,-1064.93,0.00024089,2]
[367200611,1750698684607,-2313.09,0.00024089,2]
[367200612,1750698684616,-642.42,0.00024089,2]
[367200613,1750698684626,-690.62,0.00024089,2]
[367200614,1750698684635,-490.0,0.00024089,2]
[367200615,1750698684644,-490.0,0.00024089,2]
[367200616,1750698684666,-1610.22,0.00024089,2]
[367200617,1750698684683,-3410.48,0.00024089,2]
[367200618,1750698684702,-490.0,0.00024089,2]
[367200619,1750698684722,-490.0,0.00024089,2]
[367200620,1750698684737,-1189.88,0.00024089,2]
[367200621,1750698684756,-503.76,0.00024089,2]
[367200622,1750698684776,-1272.73,0.00024089,2]
[367200623,1750698684795,-1305.05,0.00024089,2]
[367200624,1750698684813,-1292.27,0.00024089,2]
[367200625,1750698684832,-490.0,0.00024089,2]
[367200626,1750698684855,-5009.26,0.00024089,2]
[367200627,1750698684870,-802.99,0.00024089,2]
[367200628,1750698684885,-1417.36,0.00024089,2]
[367200629,1750698684904,-534.32,0.00024089,2]
[367200630,1750698684919,-1871.08,0.00024089,2]
[367200631,1750698684936,-490.0,0.00024089,2]
[367200632,1750698684951,-490.0,0.00024089,2]
[367200633,1750698684966,-1102.28,0.00024089,2]
[367200634,1750698684981,-978.05,0.00024089,2]
[367200635,1750698684995,-1290.08,0.00024089,2]
[367200636,1750698685010,-490.0,0.00024089,2]
[367200637,1750698685025,-757.53,0.00024089,2]
[367200638,1750698685041,-490.0,0.00024089,2]
[367200639,1750698685057,-490.0,0.00024089,2]
[367200640,1750698685072,-6273.63,0.00024089,2]
[367200641,1750698685091,-490.0,0.00024089,2]
[367200642,1750698685106,-2190.49,0.00024089,2]
[367200643,1750698685120,-693.85,0.00024089,2]
[367200644,1750698685136,-969.95,0.00024089,2]
[367200645,1750698685152,-844.27,0.00024089,2]
[367200646,1750698685167,-490.0,0.00024089,2]
[367200647,1750698685182,-1768.01,0.00024089,2]
[367200648,1750698685197,-490.0,0.00024089,2]
[367200649,1750698685211,-1033.79,0.00024089,2]
[367200650,1750698685225,-490.0,0.00024089,2]
[367200651,1750698685241,-2829.12,0.00024089,2]
[367200652,1750698685256,-387.37,0.00024089,2]
[367200653,1750698685272,-1421.12,0.00024089,2]
[367200654,1750698685287,-3039.87,0.00024089,2]
[367200655,1750698685301,-490.0,0.00024089,2]
[367200656,1750698685315,-615.69,0.0002409,2]
[367200657,1750698685329,-490.0,0.0002409,2]
[367200658,1750698685347,-490.0,0.0002409,2]
[367200659,1750698685361,-490.0,0.0002409,2]
[367200660,1750698685376,-799.05,0.0002409,2]
[367200661,1750698685393,-490.0,0.0002409,2]
[367200662,1750698685408,-649.48,0.0002409,2]
[367200663,1750698685422,-490.0,0.0002409,2]
[367200664,1750698685436,-747.22,0.0002409,2]
[367200665,1750698685449,-582.61,0.0002409,2]
[367200666,1750698685463,-582.61,0.0002409,2]
[367200667,1750698685478,-571.21,0.0002409,2]
[367200668,1750698685493,-490.0,0.0002409,2]
[367200669,1750698685508,-1515.67,0.0002409,2]
[367200670,1750698685522,-1565.82,0.0002409,2]
[367200671,1750698685537,-2422.44,0.0002409,2]
[367200672,1750698685552,-1311.67,0.0002409,2]
[367200673,1750698685566,-500.0,0.0002409,2]
[367200674,1750698685580,-1787.29,0.0002409,2]
[367200675,1750698685597,-490.0,0.0002409,2]
[367200676,1750698685611,-2072.67,0.0002409,2]
[367200677,1750698685626,-245.22130949,0.0002409,2]
[367200678,1750698685640,-490.0,0.0002409,2]
[367200679,1750698685655,-821.3,0.0002409,2]
[367200680,1750698685671,-1673.72,0.0002409,2]
[367200681,1750698685686,-2237.1,0.0002409,2]
[367200682,1750698685701,-1610.12,0.0002409,2]
[367200683,1750698685716,-1083.0,0.0002409,2]
[367200684,1750698685737,-1106.33,0.0002409,2]
[367200685,1750698685752,-490.0,0.0002409,2]
[367200686,1750698685766,-490.0,0.0002409,2]
[367200687,1750698685781,-490.0,0.0002409,2]
[367200688,1750698685796,-2050.62,0.0002409,2]
[367200689,1750698685811,-1208.82,0.0002409,2]
[367200690,1750698685827,-500.0,0.0002409,2]
[367200691,1750698685842,-498.0,0.0002409,2]
[367200692,1750698685856,-1726.23,0.0002409,2]
[367200693,1750698685871,-719.16,0.0002409,2]
[367200694,1750698685886,-490.0,0.0002409,2]
[367200695,1750698685902,-1608.26,0.0002409,2]
[367200696,1750698685917,-1628.29,0.0002409,2]
[367200697,1750698685933,-1088.21,0.0002409,2]
[367200698,1750698685947,-490.0,0.0002409,2]
[367200699,1750698685962,-1428.05,0.0002409,2]
[367200700,1750698685977,-548.65,0.0002409,2]
[367200701,1750698685990,-1785.44,0.0002409,2]
[367200702,1750698686005,-1037.72,0.0002409,2]
[367200703,1750698686019,-490.0,0.0002409,2]
[367200704,1750698686034,-490.0,0.0002409,2]
[367200705,1750698686048,-938.56,0.0002409,2]
[367200706,1750698686062,-490.0,0.0002409,2]
[367200707,1750698686078,-490.0,0.0002409,2]
[367200708,1750698686097,-490.0,0.0002409,2]
[367200709,1750698686110,-490.0,0.0002409,2]
[367200710,1750698686126,-1599.2,0.0002409,2]
[367200711,1750698686140,-2233.74,0.0002409,2]
[367200712,1750698686154,-779.66,0.0002409,2]
[367200713,1750698686173,-2071.71,0.0002409,2]
[367200714,1750698686188,-2448.89,0.0002409,2]
[367200715,1750698686202,-1609.83,0.0002409,2]
[367200716,1750698686216,-771.85,0.0002409,2]
[367200717,1750698686230,-17894.27,0.0002409,2]
[367200718,1750698686243,-164.28784839,0.0002409,2]
[367200719,1750698686258,-2144.67,0.0002409,2]
[367200720,1750698686272,-1031.7,0.0002409,2]
[367200721,1750698686286,-1608.07,0.0002409,2]
[367200722,1750698686300,-628.12391136,0.0002409,2]
[367200723,1750698686315,-1643.47,0.0002409,2]
[367200724,1750698686329,-1164.0,0.0002409,2]
[367200725,1750698686344,-3265.53,0.0002409,2]
[367200726,1750698686358,-1649.42,0.0002409,2]
[367200727,1750698686372,-2939.17,0.0002409,2]
[367200728,1750698686387,-6326.13,0.0002409,2]
[367200729,1750698686402,-2564.45,0.0002409,2]
[367200730,1750698686415,-2032.0,0.0002409,2]
[367200731,1750698686429,-7426.18,0.0002409,2]
[367200732,1750698686443,-1353.02,0.0002409,2]
[367200733,1750698686459,-6426.78,0.0002409,2]
[367200734,1750698686474,-732.12,0.0002409,2]
[367200735,1750698686489,-1188.46,0.0002409,2]
[367200736,1750698686505,-3016.63,0.0002409,2]
[367200737,1750698686519,-671.94,0.0002409,2]
[367200738,1750698686534,-1261.71,0.0002409,2]
[367200739,1750698686549,-8384.06,0.0002409,2]
[367200740,1750698686563,-2734.07,0.0002409,2]
[367200741,1750698686578,-1338.84,0.0002409,2]
[367200742,1750698686592,-503.82,0.0002409,2]
[367200743,1750698686606,-785.94,0.0002409,2]
[367200744,1750698686622,-2908.2,0.0002409,2]
[367200745,1750698686636,-583.61430982,0.0002409,2]
[367200746,1750698686651,-1254.38,0.0002409,2]
[367200747,1750698686666,-792.37,0.0002409,2]
[367200748,1750698686681,-3998.48,0.0002409,2]
[367200749,1750698686695,-1561.52,0.0002409,2]
[367200750,1750698686709,-6443.202937,0.0002409,2]
[367200751,1750698686722,-1450.98,0.0002409,2]
[367200752,1750698686732,-151.219152,0.0002409,2]
[367200753,1750698686742,-1020.65,0.0002409,2]
[367200754,1750698686752,-1226.48,0.0002409,2]
[367200755,1750698686761,-927.5,0.0002409,2]
[367200756,1750698686770,-490.0,0.0002409,2]
[367200757,1750698686779,-888.64,0.0002409,2]
[367200758,1750698686789,-1568.0,0.0002409,2]
[367200759,1750698686799,-573.95,0.0002409,2]
[367200760,1750698686809,-1236.22,0.0002409,2]
[367200761,1750698686818,-2086.57,0.0002409,2]
[367200762,1750698686827,-11128.95,0.0002409,2]
[367200763,1750698686838,-3474.170252,0.0002409,2]
[367200764,1750698686848,-578.12,0.0002409,2]
[367200765,1750698686857,-1094.52,0.0002409,2]
[367200766,1750698686867,-1429.33,0.0002409,2]
[367200767,1750698687299,-2550.63,0.0002409,2]
[367200768,1750698687336,-1705.63,0.0002409,2]